fUST/lending_fUST_20250616
["ID","MTS","AMOUNT","RATE_DAILY","PERIOD"]
[366132702,1750079443101,-168.0,0.00023001,2]
[366132704,1750079443111,-3000.0,0.0002301,2]
[366132707,1750079443121,-643.45,0.00023013,4]
[366132709,1750079443131,-907.45,0.00023013,4]
[366132712,1750079443140,-676.27,0.00023013,4]
[366132713,1750079443151,-1348.34,0.00023013,4]
[366132714,1750079443160,-1040.2,0.00023013,4]
[366132716,1750079443170,-944.29,0.00023013,4]
[366132717,1750079443180,-460.0,0.00023013,4]
[366132719,1750079443189,-460.0,0.00023013,4]
[366132720,1750079443199,-1450.56,0.00023013,4]
[366132721,1750079443208,-460.0,0.00023013,4]
[366132722,1750079443217,-602.5,0.00023013,4]
[366132723,1750079443227,-1534.88,0.00023013,4]
[366132725,1750079443236,-809.29,0.00023013,4]
[366132726,1750079443246,-808.39,0.00023013,4]
[366132728,1750079443255,-460.0,0.00023013,4]
[366132731,1750079443265,-3000.0,0.0002302,2]
[366132734,1750079443275,-1746.0,0.00023027,3]
[366132736,1750079443285,-334.93634825,0.00023027,3]
[366132738,1750079443295,-3000.0,0.0002303,2]
[366132740,1750079443305,-5000.0,0.00023032,2]
[366132742,1750079443315,-3000.0,0.0002304,2]
[366132744,1750079443325,-600.0,0.0002304,2]
[366132746,1750079443334,-3000.0,0.0002305,2]
[366132749,1750079443345,-3000.0,0.0002306,2]
[366132752,1750079443354,-300.0,0.00023065,2]
[366132755,1750079443364,-3000.0,0.0002307,2]
[366132757,1750079443375,-500.0,0.00023077,2]
[366132760,1750079443386,-3000.0,0.0002308,2]
[366132763,1750079443396,-5000.0,0.00023082,2]
[366132766,1750079443406,-3000.0,0.0002309,2]
[366132768,1750079443415,-3000.0,0.000231,2]
[366132771,1750079443425,-160.0,0.000231,3]
[366132773,1750079443435,-835.67987521,0.000231,3]
[366132776,1750079443445,-12537.89035583,0.000231,3]
[366132779,1750079443455,-213.36025772,0.000231,3]
[366132782,1750079443465,-160.0,0.000231,3]
[366132783,1750079443476,-160.0,0.000231,3]
[366132785,1750079443486,-424.54874296,0.000231,3]
[366132786,1750079443496,-3000.0,0.0002311,2]
[366132788,1750079443507,-3000.0,0.0002312,2]
[366132790,1750079443516,-479.0987343,0.00023123,2]
[366132791,1750079443526,-365.4091647,0.00023123,2]
[366132792,1750079443537,-365.4091647,0.00023123,2]
[366132793,1750079443547,-365.4091647,0.00023123,2]
[366132794,1750079443557,-3000.0,0.0002313,2]
[366132795,1750079443567,-293.85068442,0.00023139,2]
[366132796,1750079443577,-3000.0,0.0002314,2]
[366132797,1750079443587,-3000.0,0.0002315,2]
[366132798,1750079443597,-3000.0,0.0002316,2]
[366132799,1750079443607,-3000.0,0.0002317,2]
[366132800,1750079443617,-500.0,0.00023177,2]
[366132801,1750079443627,-3000.0,0.0002318,2]
[366132802,1750079443638,-3000.0,0.0002319,2]
[366132803,1750079443648,-3000.0,0.000232,2]
[366132804,1750079443658,-162.85516593,0.00023205,2]
[366132805,1750079443671,-3000.0,0.0002321,2]
[366132806,1750079443681,-500.0,0.0002321,2]
[366132807,1750079443691,-500.0,0.00023213,2]
[366132808,1750079443701,-3000.0,0.0002322,2]
[366132809,1750079443712,-15420.05404364,0.00023222,2]
[366132810,1750079443723,-3000.0,0.0002323,2]
[366132811,1750079443733,-3000.0,0.0002324,2]
[366132812,1750079443748,-500.0,0.00023249,2]
[366132813,1750079443758,-3000.0,0.0002325,2]
[366132814,1750079443768,-3000.0,0.0002326,2]
[366132815,1750079443778,-510.64888868,0.00023264,8]
[366132816,1750079443788,-3000.0,0.0002327,2]
[366132817,1750079443798,-3000.0,0.0002328,2]
[366132818,1750079443807,-643.45,0.00023287,4]
[366132819,1750079443818,-907.45,0.00023287,4]
[366132820,1750079443828,-676.27,0.00023287,4]
[366132821,1750079443838,-1348.34,0.00023287,4]
[366132822,1750079443848,-1040.2,0.00023287,4]
[366132823,1750079443857,-944.29,0.00023287,4]
[366132824,1750079443866,-460.0,0.00023287,4]
[366132825,1750079443876,-397.92,0.00023287,4]
[366132826,1750079443885,-1450.56,0.00023287,4]
[366132827,1750079443894,-460.0,0.00023287,4]
[366132828,1750079443903,-1534.88,0.00023287,4]
[366132829,1750079443913,-809.29,0.00023287,4]
[366132830,1750079443922,-808.39,0.00023287,4]
[366132831,1750079443931,-583.82199391,0.00023287,4]
[366132832,1750079443940,-3000.0,0.0002329,2]
[366132833,1750079443950,-3000.0,0.000233,2]
[366132834,1750079443959,-767.16,0.000233,2]
[366132835,1750079443968,-151.0,0.000233,8]
[366132836,1750079443977,-3000.0,0.0002331,2]
[366132837,1750079443986,-5966.593199,0.0002332,2]
[366132838,1750079444116,-500.0,0.00023339,2]
[366132839,1750079444125,-500.0,0.00023359,2]
[366132840,1750079444135,-4414.077412,0.00023359,2]
[366132841,1750079444144,-4414.077412,0.00023359,2]
[366132842,1750079444154,-151.0,0.00023359,7]
[366132843,1750079444163,-500.0,0.00023471,2]
[366132844,1750079444172,-1070.316869,0.0002352,3]
[366132845,1750079444182,-500.0,0.00023552,2]
[366132846,1750079444191,-643.45,0.00023561,4]
[366132847,1750079444200,-907.45,0.00023561,4]
[366132848,1750079444210,-676.27,0.00023561,4]
[366132849,1750079444219,-1348.34,0.00023561,4]
[366132850,1750079444230,-1040.2,0.00023561,4]
[366132851,1750079444241,-944.29,0.00023561,4]
[366132852,1750079444250,-257.04717125,0.00023561,4]
[366132853,1750079444260,-1450.56,0.00023561,4]
[366132854,1750079444270,-460.0,0.00023561,4]
[366132855,1750079444279,-1534.88,0.00023561,4]
[366132856,1750079444289,-809.29,0.00023561,4]
[366132857,1750079444299,-808.39,0.00023561,4]
[366132858,1750079444309,-20.4385449,0.00023569,2]
[366132859,1750079444329,-479.5614551,0.00023569,2]
[366132860,1750079444339,-500.0,0.00023577,2]
[366132861,1750079444348,-1562.847558,0.000236,2]
[366132862,1750079444358,-500.0,0.0002361,2]
[366132863,1750079444368,-562.73570717,0.00023613,7]
[366132864,1750079444378,-5000.0,0.0002363,2]
[366132865,1750079444388,-500.0,0.00023648,2]
[366132866,1750079444398,-823.0,0.00023663,2]
[366132867,1750079444408,-5190.45,0.00023676,2]
[366132868,1750079444418,-12500.0,0.00023685,3]
[366132869,1750079444428,-12500.0,0.00023694,3]
[366132870,1750079444438,-151.0,0.000237,5]
[366132871,1750079444448,-12500.0,0.00023703,3]
[366132872,1750079444459,-12500.0,0.00023711,3]
[366132873,1750079444469,-12500.0,0.0002372,3]
[366132874,1750079444480,-8825.71765221,0.00023729,3]
[366132875,1750079444559,-853.19196929,0.00023729,3]
[366132876,1750079444619,-898.96031682,0.000201,2]
[366132877,1750079444630,-407.538535,0.00020107,2]
[366132878,1750079444643,-491.4217818,0.00020107,2]
[366132879,1750079444653,-485.4660932,0.00020314,3]
[366132880,1750079444669,-413.4942236,0.00020314,3]
[366132881,1750079444682,-231.7957764,0.00020521,3]
[366132895,1750079445960,-500.0,0.00018229,2]
[366132897,1750079445970,-492.2030331,0.00018229,2]
[366132899,1750079445980,-500.0,0.00018229,2]
[366132901,1750079445991,-171.04583943,0.00019078,2]
[366132902,1750079446002,-667.1645404,0.00020521,3]
[366132904,1750079446011,-228.31028629,0.00020728,3]
[366132906,1750079446027,-670.65003051,0.00020728,3]
[366132908,1750079446037,-898.9603168,0.00020934,4]
[366132910,1750079446049,-388.95484022,0.00021141,4]
[366132912,1750079446061,-510.00547658,0.00021141,4]
[366132914,1750079446070,-898.9603168,0.00021348,5]
[366132916,1750079446080,-898.9603168,0.00021555,5]
[366132917,1750079446090,-898.9603168,0.00021762,5]
[366132919,1750079446100,-898.9603168,0.00021969,6]
[366132921,1750079446110,-898.9603168,0.00022176,6]
[366132923,1750079446120,-898.9603168,0.00022383,7]
[366132925,1750079446129,-715.10935442,0.0002259,7]
[366133200,1750079983377,-164.79406157,0.00018032,2]
[366133206,1750080106379,159.769475,0.00013699,2]
[366133254,1750080605099,200.0,0.00024649,120]
[366133255,1750080606936,6988.7195574,0.00017336,2]
[366133263,1750080632067,-1666.0179623,0.00018032,2]
[366133264,1750080632085,-3169.18797613,0.00018032,2]
[366133265,1750080632098,-1200.0,0.00018172,2]
[366133266,1750080632109,-182.28506526,0.00018173,2]
[366133267,1750080632123,-117.71493474,0.00018173,2]
[366133268,1750080632139,-300.0,0.00018173,2]
[366133270,1750080632153,-300.0,0.00018173,2]
[366133273,1750080632166,-300.0,0.00018173,2]
[366133275,1750080632179,-386.88559323,0.00018175,2]
[366133276,1750080632192,-500.0,0.00018175,2]
[366133277,1750080632205,-390.24333677,0.00018175,2]
[366133278,1750080632217,-500.0,0.00018175,2]
[366133279,1750080632230,-515.39573946,0.00018175,2]
[366133280,1750080632242,-500.0,0.00018175,2]
[366133281,1750080632254,-500.0,0.00018176,2]
[366133282,1750080632266,-500.0,0.00018176,2]
[366133283,1750080632278,-500.0,0.00018176,2]
[366133284,1750080632292,-500.0,0.00018176,2]
[366133285,1750080632305,-203.20483639,0.00018176,2]
[366133286,1750080632326,-197.24000979,0.00018176,2]
[366133287,1750080632343,-500.0,0.00018176,2]
[366133288,1750080632355,-500.0,0.00018176,2]
[366133289,1750080632367,-500.0,0.00018176,2]
[366133290,1750080632382,-500.0,0.00018176,2]
[366133291,1750080632395,-500.0,0.00018176,2]
[366133292,1750080632407,-500.0,0.00018176,2]
[366133293,1750080632419,-500.0,0.00018176,2]
[366133294,1750080632431,-500.0,0.00018176,2]
[366133295,1750080632444,-500.0,0.00018176,2]
[366133296,1750080632456,-430.31139232,0.00018176,2]
[366133297,1750080632468,-24900.0,0.00018177,2]
[366133298,1750080632479,-188.49155916,0.00018817,2]
[366133299,1750080632491,-2282.3581112,0.000189,2]
[366133300,1750080632501,-202.20874252,0.00019077,2]
[366133301,1750080632511,-155.0,0.00019177,2]
[366133302,1750080632523,-460.0,0.00019178,2]
[366133303,1750080632533,-460.0,0.00019178,2]
[366133304,1750080632545,-460.0,0.00019178,2]
[366133305,1750080632556,-460.0,0.00019178,2]
[366133306,1750080632567,-460.0,0.00019178,2]
[366133307,1750080632578,-363.01752025,0.00019178,2]
[366133308,1750080632591,-360.0,0.00019178,2]
[366133309,1750080632602,-460.0,0.00019178,2]
[366133310,1750080632614,-171.53261845,0.00019178,2]
[366133311,1750080632628,-460.0,0.00019178,2]
[366133312,1750080632641,-460.0,0.00019178,2]
[366133313,1750080632652,-460.0,0.00019178,2]
[366133314,1750080632664,-460.0,0.00019178,2]
[366133315,1750080632676,-460.0,0.00019178,2]
[366133316,1750080632689,-181.04052881,0.00019178,2]
[366133317,1750080632700,-460.0,0.00019178,2]
[366133318,1750080632713,-460.0,0.00019178,2]
[366133319,1750080632727,-460.0,0.00019178,2]
[366133320,1750080632740,-460.0,0.00019178,2]
[366133321,1750080632751,-1000.0,0.00019178,2]
[366133322,1750080632762,-460.0,0.00019178,2]
[366133323,1750080632772,-460.0,0.00019178,2]
[366133324,1750080632783,-460.0,0.00019178,2]
[366133325,1750080632793,-581.12,0.00019178,2]
[366133326,1750080632803,-460.0,0.00019178,2]
[366133327,1750080632815,-460.0,0.00019178,2]
[366133328,1750080632828,-460.0,0.00019178,2]
[366133329,1750080632840,-460.0,0.00019178,2]
[366133330,1750080632852,-458.63936939,0.00019178,2]
[366133331,1750080632866,-460.0,0.00019178,2]
[366133332,1750080632882,-460.0,0.00019178,2]
[366133333,1750080632899,-460.0,0.00019178,2]
[366133334,1750080632910,-639.13,0.00019178,2]
[366133335,1750080632920,-460.0,0.00019178,2]
[366133336,1750080632933,-460.0,0.00019178,2]
[366133337,1750080632946,-460.0,0.00019178,2]
[366133338,1750080632959,-460.0,0.00019178,2]
[366133339,1750080632972,-460.0,0.00019178,2]
[366133340,1750080632983,-589.42,0.00019178,2]
[366133341,1750080632996,-460.0,0.00019178,2]
[366133342,1750080633008,-460.0,0.00019178,2]
[366133343,1750080633019,-473.15113895,0.00019178,2]
[366133344,1750080633031,-358.81434028,0.00019178,2]
[366133345,1750080633044,-454.4415338,0.00019178,2]
[366133346,1750080633056,-460.0,0.00019178,2]
[366133347,1750080633067,-460.0,0.00019178,2]
[366133348,1750080633082,-460.0,0.00019178,2]
[366133349,1750080633095,-460.0,0.00019178,2]
[366133350,1750080633106,-460.0,0.00019178,2]
[366133351,1750080633118,-460.0,0.00019178,2]
[366133352,1750080633134,-846.16,0.00019178,2]
[366133353,1750080633147,-460.0,0.00019178,2]
[366133354,1750080633159,-460.0,0.00019178,2]
[366133355,1750080633171,-151.0,0.00019178,2]
[366133356,1750080633183,-460.0,0.00019178,2]
[366133357,1750080633195,-460.0,0.00019178,2]
[366133358,1750080633207,-460.0,0.00019178,2]
[366133359,1750080633218,-460.0,0.00019178,2]
[366133360,1750080633231,-460.0,0.00019178,2]
[366133361,1750080633245,-304.98347318,0.00019178,2]
[366133362,1750080633256,-546.02494343,0.00019178,2]
[366133363,1750080633268,-460.0,0.00019178,2]
[366133364,1750080633280,-594.65336325,0.00019178,2]
[366133365,1750080633292,-274.58173836,0.00019178,2]
[366133366,1750080633304,-347.03383799,0.00019178,2]
[366133367,1750080633316,-460.0,0.00019178,2]
[366133368,1750080633327,-460.0,0.00019178,2]
[366133369,1750080633339,-460.0,0.00019178,2]
[366133370,1750080633351,-365.62042628,0.00019178,2]
[366133371,1750080633363,-460.0,0.00019178,2]
[366133372,1750080633375,-440.0,0.00019178,2]
[366133373,1750080633390,-460.0,0.00019178,2]
[366133374,1750080633402,-460.0,0.00019178,2]
[366133375,1750080633413,-460.0,0.00019178,2]
[366133376,1750080633425,-460.0,0.00019178,2]
[366133377,1750080633437,-460.0,0.00019178,2]
[366133378,1750080633448,-460.0,0.00019178,2]
[366133379,1750080633460,-460.0,0.00019178,2]
[366133380,1750080633471,-460.0,0.00019178,2]
[366133381,1750080633483,-460.0,0.00019178,2]
[366133382,1750080633494,-460.0,0.00019178,2]
[366133383,1750080633506,-977.15,0.00019178,2]
[366133384,1750080633518,-950.82,0.00019178,2]
[366133385,1750080633529,-460.0,0.00019178,2]
[366133386,1750080633541,-460.0,0.00019178,2]
[366133387,1750080633552,-514.48,0.00019178,2]
[366133388,1750080633565,-460.0,0.00019178,2]
[366133389,1750080633577,-530.28,0.00019178,2]
[366133390,1750080633589,-150.0,0.00019178,2]
[366133391,1750080633602,-500.0,0.00019333,2]
[366133392,1750080633614,-500.0,0.00019333,2]
[366133393,1750080633627,-500.0,0.00019333,2]
[366133394,1750080633643,-500.0,0.00019333,2]
[366133395,1750080633656,-500.0,0.00019333,2]
[366133396,1750080633885,-500.0,0.00019333,2]
[366133397,1750080633897,-500.0,0.00019333,2]
[366133398,1750080633908,-500.0,0.00019333,2]
[366133399,1750080633918,-5330.03315528,0.00019352,2]
[366133400,1750080633928,-460.0,0.00019452,4]
[366133401,1750080633939,-460.0,0.00019452,2]
[366133402,1750080633949,-581.12,0.00019452,4]
[366133403,1750080633958,-460.0,0.00019452,4]
[366133404,1750080633969,-639.13,0.00019452,4]
[366133405,1750080633979,-460.0,0.00019452,4]
[366133406,1750080633990,-460.0,0.00019452,4]
[366133407,1750080633999,-589.42,0.00019452,4]
[366133408,1750080634010,-460.0,0.00019452,4]
[366133409,1750080634019,-460.0,0.00019452,4]
[366133410,1750080634031,-846.16,0.00019452,4]
[366133411,1750080634041,-460.0,0.00019452,4]
[366133412,1750080634051,-460.0,0.00019452,4]
[366133413,1750080634060,-460.0,0.00019452,4]
[366133414,1750080634070,-460.0,0.00019452,4]
[366133415,1750080634080,-977.15,0.00019452,4]
[366133416,1750080634089,-950.82,0.00019452,4]
[366133417,1750080634099,-514.48,0.00019452,4]
[366133418,1750080634108,-530.28,0.00019452,4]
[366133419,1750080634119,-500.0,0.00019481,2]
[366133420,1750080634130,-500.0,0.00019481,2]
[366133421,1750080634139,-502.03367678,0.00019541,2]
[366133422,1750080634149,-502.6359938,0.00019541,2]
[366133423,1750080634158,-503.87383377,0.00019563,2]
[366133424,1750080634168,-504.2284594,0.00019595,2]
[366133425,1750080634177,-501.55391125,0.00019595,2]
[366133426,1750080634187,-196.90797508,0.00019595,2]
[366133427,1750080634196,-618.04139423,0.00019595,2]
[366133428,1750080634206,-500.0,0.00019613,2]
[366133429,1750080634216,-500.0,0.00019613,2]
[366133430,1750080634225,-500.0,0.00019626,2]
[366133431,1750080634235,-179.53535435,0.00019626,2]
[366133432,1750080634244,-500.0,0.00019626,2]
[366133433,1750080634255,-505.61326846,0.00019626,2]
[366133434,1750080634264,-189.06396909,0.00019626,2]
[366133435,1750080634274,-216.37913953,0.00019626,2]
[366133436,1750080634284,-500.0,0.00019626,2]
[366133437,1750080634295,-188.49155914,0.00019689,2]
[366133438,1750080634305,-460.0,0.00019726,2]
[366133439,1750080634315,-581.12,0.00019726,4]
[366133440,1750080634326,-460.0,0.00019726,4]
[366133441,1750080634336,-639.13,0.00019726,4]
[366133442,1750080634346,-460.0,0.00019726,4]
[366133443,1750080634361,-460.0,0.00019726,4]
[366133444,1750080634371,-589.42,0.00019726,4]
[366133445,1750080634382,-460.0,0.00019726,4]
[366133446,1750080634392,-460.0,0.00019726,4]
[366133447,1750080634401,-846.16,0.00019726,4]
[366133448,1750080634411,-460.0,0.00019726,4]
[366133449,1750080634421,-460.0,0.00019726,4]
[366133450,1750080634431,-460.0,0.00019726,4]
[366133451,1750080634440,-460.0,0.00019726,4]
[366133452,1750080634450,-977.15,0.00019726,4]
[366133453,1750080634460,-950.82,0.00019726,4]
[366133454,1750080634469,-514.48,0.00019726,4]
[366133455,1750080634479,-530.28,0.00019726,4]
[366133456,1750080634489,-240.0,0.00019825,2]
[366133457,1750080634498,-420.0,0.00019825,2]
[366133458,1750080634508,-420.0,0.00019825,2]
[366133459,1750080634518,-503.4130077,0.00019881,2]
[366133460,1750080634527,-1000.0,0.00019881,2]
[366133461,1750080634537,-1000.0,0.00019881,2]
[366133462,1750080634547,-1000.0,0.00019881,2]
[366133463,1750080634557,-1000.0,0.00019881,2]
[366133464,1750080634567,-1000.0,0.00019881,2]
[366133465,1750080634576,-202.2087425,0.00019899,2]
[366133466,1750080634586,-1680.0,0.00019921,2]
[366133467,1750080634595,-460.0,0.00019999,4]
[366133468,1750080634605,-271.91773466,0.00019999,4]
[366133469,1750080634615,-460.0,0.0002,2]
[366133470,1750080634624,-581.12,0.0002,4]
[366133471,1750080634636,-460.0,0.0002,4]
[366133472,1750080634646,-639.13,0.0002,4]
[366133473,1750080634656,-460.0,0.0002,4]
[366133474,1750080634666,-460.0,0.0002,4]
[366133475,1750080634676,-589.42,0.0002,4]
[366133476,1750080634686,-460.0,0.0002,4]
[366133477,1750080634695,-460.0,0.0002,4]
[366133478,1750080634706,-846.16,0.0002,4]
[366133479,1750080634715,-460.0,0.0002,4]
[366133480,1750080634724,-300.0,0.0002,2]
[366133481,1750080634734,-460.0,0.0002,4]
[366133482,1750080634743,-392.17758323,0.0002,4]
[366133483,1750080634753,-460.0,0.0002,4]
[366133484,1750080634762,-977.15,0.0002,4]
[366133485,1750080634773,-950.82,0.0002,4]
[366133486,1750080634782,-514.48,0.0002,4]
[366133487,1750080634793,-530.28,0.0002,4]
[366133488,1750080634803,-1077.1181603,0.00020029,2]
[366133489,1750080634812,-722.63519124,0.000201,2]
[366133490,1750080634822,-722.63519115,0.00020107,2]
[366133491,1750080634832,-673.45,0.00020154,3]
[366133492,1750080634842,-1000.0,0.0002016,2]
[366133493,1750080634853,-1000.0,0.0002016,2]
[366133494,1750080634863,-1000.0,0.00020174,2]
[366133495,1750080634873,-1000.0,0.00020174,2]
[366133496,1750080634884,-309.0,0.00020217,2]
[366133497,1750080634895,-507.57878241,0.0002025,2]
[366133498,1750080634905,-336.72,0.00020263,3]
[366133499,1750080634916,-460.0,0.00020273,2]
[366133500,1750080634926,-581.12,0.00020273,4]
[366133501,1750080634936,-460.0,0.00020273,4]
[366133502,1750080634945,-639.13,0.00020273,4]
[366133503,1750080634955,-460.0,0.00020273,4]
[366133504,1750080634964,-460.0,0.00020273,4]
[366133505,1750080634974,-589.42,0.00020273,4]
[366133506,1750080634983,-460.0,0.00020273,4]
[366133507,1750080634993,-460.0,0.00020273,4]
[366133508,1750080635003,-846.16,0.00020273,4]
[366133509,1750080635014,-460.0,0.00020273,4]
[366133510,1750080635023,-460.0,0.00020273,4]
[366133511,1750080635035,-460.0,0.00020273,4]
[366133512,1750080635045,-977.15,0.00020273,4]
[366133513,1750080635055,-950.82,0.00020273,4]
[366133514,1750080635065,-514.48,0.00020273,4]
[366133515,1750080635074,-530.28,0.00020273,4]
[366133516,1750080635085,-673.43,0.00020294,3]
[366133517,1750080635094,-505.07,0.00020304,3]
[366133518,1750080635104,-722.63519115,0.00020314,3]
[366133519,1750080635114,-5330.03315526,0.00020404,2]
[366133520,1750080635124,-384.0,0.00020421,2]
[366133521,1750080635136,-1500.0,0.00020429,2]
[366133522,1750080635145,-484.16389248,0.00020429,2]
[366133523,1750080635155,-1500.0,0.00020429,2]
[366133524,1750080635164,-566.07978846,0.00020429,2]
[366133525,1750080635174,-1000.0,0.00020429,2]
[366133526,1750080635183,-160.0,0.00020511,2]
[366133527,1750080635193,-424.54874296,0.00020511,2]
[366133528,1750080635203,-160.0,0.00020511,2]
[366133529,1750080635212,-213.36025772,0.00020511,2]
[366133530,1750080635222,-229.90125484,0.00020511,2]
[366133531,1750080635232,-160.0,0.00020511,2]
[366133532,1750080635242,-835.67987521,0.00020511,2]
[366133533,1750080635252,-160.0,0.00020511,2]
[366133534,1750080635262,-160.0,0.00020511,2]
[366133535,1750080635272,-160.0,0.00020511,2]
[366133536,1750080635282,-160.0,0.00020511,2]
[366133537,1750080635292,-160.0,0.00020511,2]
[366133538,1750080635302,-160.0,0.00020511,2]
[366133539,1750080635312,-12537.89035583,0.00020511,2]
[366133540,1750080635322,-845.47092152,0.00020511,2]
[366133541,1750080635333,-175.144,0.00020518,2]
[366133542,1750080635343,-722.63519115,0.00020521,3]
[366133543,1750080635353,-460.0,0.00020547,2]
[366133544,1750080635363,-581.12,0.00020547,4]
[366133545,1750080635373,-460.0,0.00020547,4]
[366133546,1750080635385,-639.13,0.00020547,4]
[366133547,1750080635395,-460.0,0.00020547,4]
[366133548,1750080635406,-460.0,0.00020547,4]
[366133549,1750080635415,-589.42,0.00020547,4]
[366133550,1750080635425,-460.0,0.00020547,4]
[366133551,1750080635435,-308.11458689,0.00020547,4]
[366133552,1750080635444,-846.16,0.00020547,4]
[366133553,1750080635454,-460.0,0.00020547,4]
[366133554,1750080635464,-460.0,0.00020547,4]
[366133555,1750080635474,-460.0,0.00020547,4]
[366133556,1750080635484,-977.15,0.00020547,4]
[366133557,1750080635493,-950.82,0.00020547,4]
[366133558,1750080635503,-514.48,0.00020547,4]
[366133559,1750080635512,-530.28,0.00020547,4]
[366133560,1750080635522,-188.49155914,0.00020561,2]
[366133561,1750080635532,-1500.0,0.00020708,2]
[366133562,1750080635542,-1500.0,0.00020708,2]
[366133563,1750080635552,-202.2087425,0.00020721,2]
[366133564,1750080635561,-1500.0,0.00020722,2]
[366133565,1750080635571,-1095.24926172,0.00020722,2]
[366133566,1750080635580,-722.63519115,0.00020728,3]
[366133567,1750080635591,-1267.97,0.00020786,2]
[366133568,1750080635601,-460.0,0.00020821,2]
[366133569,1750080635612,-581.12,0.00020821,4]
[366133570,1750080635622,-460.0,0.00020821,4]
[366133571,1750080635633,-639.13,0.00020821,4]
[366133572,1750080635643,-397.92,0.00020821,4]
[366133573,1750080635653,-460.0,0.00020821,4]
[366133574,1750080635663,-589.42,0.00020821,4]
[366133575,1750080635673,-460.0,0.00020821,4]
[366133576,1750080635683,-846.16,0.00020821,4]
[366133577,1750080635693,-158.25,0.00020821,4]
[366133578,1750080635703,-460.0,0.00020821,4]
[366133579,1750080635712,-460.0,0.00020821,4]
[366133580,1750080635722,-977.15,0.00020821,4]
[366133581,1750080635731,-950.82,0.00020821,4]
[366133582,1750080635742,-514.48,0.00020821,4]
[366133583,1750080635752,-530.28,0.00020821,4]
[366133584,1750080635762,-722.63519115,0.00020934,4]
[366133585,1750080635771,-2000.0,0.00020977,2]
[366133586,1750080635781,-2000.0,0.00020977,2]
[366133587,1750080635790,-500.0,0.00021094,2]
[366133588,1750080635800,-160.0,0.00021094,2]
[366133589,1750080635810,-460.0,0.00021095,2]
[366133590,1750080635819,-581.12,0.00021095,4]
[366133591,1750080635829,-460.0,0.00021095,4]
[366133592,1750080635839,-639.13,0.00021095,4]
[366133593,1750080635848,-460.0,0.00021095,4]
[366133594,1750080635858,-589.42,0.00021095,4]
[366133595,1750080635868,-257.04717125,0.00021095,4]
[366133596,1750080635881,-846.16,0.00021095,4]
[366133597,1750080635890,-460.0,0.00021095,4]
[366133598,1750080635900,-460.0,0.00021095,4]
[366133599,1750080635910,-977.15,0.00021095,4]
[366133600,1750080635920,-950.82,0.00021095,4]
[366133601,1750080635930,-514.48,0.00021095,4]
[366133602,1750080635940,-530.28,0.00021095,4]
[366133603,1750080635950,-722.63519115,0.00021141,4]
[366133604,1750080635960,-2000.0,0.00021256,2]
[366133605,1750080635970,-1000.0,0.00021256,2]
[366133606,1750080635980,-1008.88061656,0.0002127,2]
[366133607,1750080635990,-722.63519115,0.00021348,5]
[366133608,1750080635999,-460.0,0.00021369,2]
[366133609,1750080636009,-581.12,0.00021369,4]
[366133610,1750080636019,-460.0,0.00021369,4]
[366133611,1750080636029,-639.13,0.00021369,4]